[Event "*** Titled Tuesday Blitz"]
[Site "Chess.com"]
[Date "2021.04.27"]
[Round "3"]
[White "zurzan"]
[Black "Andrii_Prydun"]
[Result "0-1"]
[WhiteElo "2012"]
[BlackElo "2342"]
[TimeControl "180+1"]
[EndTime "10:26:58 PDT"]
[Termination "Andrii_Prydun won by resignation"]

1. f4 {[%clk 0:03:00.9]} 1... d6 {[%clk 0:02:56.5]} 2. Nf3 {[%clk 0:03:00.9]}
2... Nd7 {[%clk 0:02:55.1]} 3. g3 {[%clk 0:03:01.1]} 3... e5 {[%clk 0:02:53.5]}
4. fxe5 {[%clk 0:03:00.9]} 4... dxe5 {[%clk 0:02:53]} 5. e4 {[%clk 0:03:00.9]}
5... Ngf6 {[%clk 0:02:51.5]} 6. Nc3 {[%clk 0:02:55.9]} 6... Bc5 {[%clk
0:02:51.5]} 7. d4 {[%clk 0:02:29.7]} 7... exd4 {[%clk 0:02:51.1]} 8. e5 {[%clk
0:02:29.5]} 8... dxc3 {[%clk 0:02:45.2]} 9. exf6 {[%clk 0:02:29.3]} 9... Qxf6
{[%clk 0:02:45.9]} 10. Qe2+ {[%clk 0:02:14.7]} 10... Be7 {[%clk 0:02:39.5]} 11.
Bg5 {[%clk 0:02:11.4]} 11... Qe6 {[%clk 0:02:40.1]} 12. Bxe7 {[%clk 0:02:07.8]}
12... cxb2 {[%clk 0:02:39]} 13. Rb1 {[%clk 0:02:05.7]} 13... Kxe7 {[%clk
0:02:34.8]} 14. Rxb2 {[%clk 0:02:01.1]} 14... Re8 {[%clk 0:02:29.8]} 15. Qxe6+
{[%clk 0:02:00]} 15... Kxe6 {[%clk 0:02:19.4]} 16. Bc4+ {[%clk 0:01:58.9]} 16...
Kd6+ {[%clk 0:02:17.2]} 17. Kd2 {[%clk 0:01:58.4]} 17... f6 {[%clk 0:02:15.7]}
18. Nd4 {[%clk 0:01:49]} 18... Nb6 {[%clk 0:02:11]} 19. Bd3 {[%clk 0:01:48]}
19... g6 {[%clk 0:02:04.8]} 20. Nb5+ {[%clk 0:01:46.7]} 20... Kc6 {[%clk
0:02:04.5]} 21. Re1 {[%clk 0:01:38.6]} 21... Rxe1 {[%clk 0:02:02.4]} 22. Kxe1
{[%clk 0:01:39.5]} 22... Bg4 {[%clk 0:01:52.2]} 23. Nd4+ {[%clk 0:01:30.7]}
23... Kd5 {[%clk 0:01:51.6]} 24. c3 {[%clk 0:01:30.8]} 24... a6 {[%clk
0:01:50.3]} 25. Rb4 {[%clk 0:01:28.1]} 25... Re8+ {[%clk 0:01:47.5]} 26. Kf2
{[%clk 0:01:27.5]} 26... Rd8 {[%clk 0:01:24.3]} 27. a4 {[%clk 0:01:26.5]} 27...
Rd6 {[%clk 0:01:17.2]} 28. a5 {[%clk 0:01:26]} 28... Nd7 {[%clk 0:01:17.3]} 29.
Rxb7 {[%clk 0:01:23.6]} 29... Nc5 {[%clk 0:01:17.3]} 30. Bxa6 {[%clk 0:00:52.7]}
30... Nxa6 {[%clk 0:01:14.9]} 31. Nb5 {[%clk 0:00:47.2]} 31... Rc6 {[%clk
0:01:12.4]} 32. Ra7 {[%clk 0:00:39.7]} 32... Kc4 {[%clk 0:01:07.2]} 33. Nd4
{[%clk 0:00:32.1]} 33... Rd6 {[%clk 0:01:06.7]} 34. Nb5 {[%clk 0:00:27.7]} 34...
Kxb5 {[%clk 0:01:04.3]} 0-1

[Event "*** Titled Tuesday Blitz"]
[Site "Chess.com"]
[Date "2021.04.27"]
[Round "3"]
[White "LubovMarkelova"]
[Black "Aradhya2000"]
[Result "1/2-1/2"]
[WhiteElo "2274"]
[BlackElo "2629"]
[TimeControl "180+1"]
[EndTime "10:27:00 PDT"]
[Termination "Game drawn by repetition"]

1. Nf3 {[%clk 0:02:53.6]} 1... d5 {[%clk 0:02:57.7]} 2. d4 {[%clk 0:02:53.5]}
2... Nf6 {[%clk 0:02:56.8]} 3. c4 {[%clk 0:02:54.1]} 3... c6 {[%clk 0:02:56.8]}
4. e3 {[%clk 0:02:55]} 4... Bf5 {[%clk 0:02:55.9]} 5. cxd5 {[%clk 0:02:54.8]}
5... cxd5 {[%clk 0:02:55.2]} 6. Nc3 {[%clk 0:02:55.5]} 6... e6 {[%clk
0:02:49.9]} 7. Ne5 {[%clk 0:02:55.6]} 7... Nfd7 {[%clk 0:02:49.7]} 8. Bd3 {[%clk
0:02:54.4]} 8... Bxd3 {[%clk 0:02:47.4]} 9. Nxd3 {[%clk 0:02:53.9]} 9... Nc6
{[%clk 0:02:47.6]} 10. O-O {[%clk 0:02:53.5]} 10... Be7 {[%clk 0:02:47.3]} 11.
Bd2 {[%clk 0:02:53.7]} 11... O-O {[%clk 0:02:46.9]} 12. Rc1 {[%clk 0:02:53.1]}
12... Rc8 {[%clk 0:02:47]} 13. Qe2 {[%clk 0:02:48]} 13... a6 {[%clk 0:02:31.1]}
14. Rfd1 {[%clk 0:02:46.4]} 14... b5 {[%clk 0:02:18]} 15. f3 {[%clk 0:02:41.2]}
15... Nb6 {[%clk 0:02:13.4]} 16. b3 {[%clk 0:02:36.7]} 16... h5 {[%clk
0:01:39.5]} 17. Be1 {[%clk 0:02:33.2]} 17... g6 {[%clk 0:01:37.7]} 18. Bf2
{[%clk 0:02:12.8]} 18... Kg7 {[%clk 0:01:36.3]} 19. Nc5 {[%clk 0:01:58.3]} 19...
Bxc5 {[%clk 0:01:09.1]} 20. dxc5 {[%clk 0:01:58.2]} 20... Nd7 {[%clk 0:01:09.5]}
21. e4 {[%clk 0:01:55.1]} 21... d4 {[%clk 0:01:09]} 22. Bxd4+ {[%clk 0:01:46.6]}
22... Nxd4 {[%clk 0:01:09.3]} 23. Rxd4 {[%clk 0:01:40.8]} 23... Rxc5 {[%clk
0:01:07.9]} 24. Rcd1 {[%clk 0:01:36.1]} 24... Rxc3 {[%clk 0:01:01.9]} 25. Rxd7
{[%clk 0:01:36.1]} 25... Qb6+ {[%clk 0:00:56.8]} 26. Qf2 {[%clk 0:01:22.9]}
26... Qxf2+ {[%clk 0:00:53.5]} 27. Kxf2 {[%clk 0:01:23.1]} 27... Rfc8 {[%clk
0:00:54.2]} 28. R1d2 {[%clk 0:01:19.9]} 28... g5 {[%clk 0:00:36.2]} 29. Ra7
{[%clk 0:01:19.2]} 29... Rc2 {[%clk 0:00:35.6]} 30. Ke2 {[%clk 0:01:19]} 30...
R8c6 {[%clk 0:00:33.9]} 31. Kd3 {[%clk 0:01:14.1]} 31... Rc1 {[%clk 0:00:28.3]}
32. Ke2 {[%clk 0:01:11]} 32... R1c2 {[%clk 0:00:20]} 33. Kd3 {[%clk 0:01:11]}
33... R6c3+ {[%clk 0:00:17.1]} 34. Ke2 {[%clk 0:01:09.9]} 34... Rc6 {[%clk
0:00:17.3]} 1/2-1/2

[Event "*** Titled Tuesday Blitz"]
[Site "Chess.com"]
[Date "2021.04.27"]
[Round "3"]
[White "Apocalyps999"]
[Black "VladDobrov"]
[Result "0-1"]
[WhiteElo "2439"]
[BlackElo "2717"]
[TimeControl "180+1"]
[EndTime "10:27:08 PDT"]
[Termination "VladDobrov won by resignation"]

1. e4 {[%clk 0:02:49]} 1... c5 {[%clk 0:02:59.7]} 2. Nf3 {[%clk 0:02:48.1]} 2...
Nc6 {[%clk 0:02:58.6]} 3. d4 {[%clk 0:02:48.6]} 3... cxd4 {[%clk 0:02:59.5]} 4.
Nxd4 {[%clk 0:02:49.3]} 4... Qb6 {[%clk 0:03:00]} 5. Nb3 {[%clk 0:02:46.1]} 5...
Nf6 {[%clk 0:02:59.3]} 6. Nc3 {[%clk 0:02:44.3]} 6... e6 {[%clk 0:02:59.6]} 7.
Be3 {[%clk 0:02:42.7]} 7... Qc7 {[%clk 0:02:59.9]} 8. Be2 {[%clk 0:02:39.1]}
8... a6 {[%clk 0:02:59.2]} 9. O-O {[%clk 0:02:37.1]} 9... b5 {[%clk 0:02:59.1]}
10. a3 {[%clk 0:02:35.7]} 10... Bb7 {[%clk 0:02:58]} 11. f4 {[%clk 0:02:35.3]}
11... d6 {[%clk 0:02:58.3]} 12. Bf3 {[%clk 0:02:32.1]} 12... Be7 {[%clk
0:02:57.8]} 13. Qe1 {[%clk 0:02:32]} 13... h5 {[%clk 0:02:57.2]} 14. Rd1 {[%clk
0:02:30]} 14... Rc8 {[%clk 0:02:55.8]} 15. Qg3 {[%clk 0:02:08.7]} 15... h4
{[%clk 0:02:54.7]} 16. Qxg7 {[%clk 0:02:08.2]} 16... Rg8 {[%clk 0:02:14.1]} 17.
Qh6 {[%clk 0:02:07]} 17... b4 {[%clk 0:02:01.3]} 18. axb4 {[%clk 0:02:01.3]}
18... Nxb4 {[%clk 0:02:02.2]} 19. e5 {[%clk 0:01:58.8]} 19... Nxc2 {[%clk
0:01:37]} 20. exf6 {[%clk 0:00:48.5]} 20... Nxe3 {[%clk 0:01:36.8]} 21. Qh7
{[%clk 0:00:48.4]} 21... Rg6 {[%clk 0:01:33.4]} 22. fxe7 {[%clk 0:00:15.4]}
22... Nxd1 {[%clk 0:01:28]} 23. Nxd1 {[%clk 0:00:14.1]} 23... Qb6+ {[%clk
0:01:24.9]} 24. Kh1 {[%clk 0:00:11.7]} 24... Qxb3 {[%clk 0:01:21.4]} 25. Qh8+
{[%clk 0:00:09.7]} 25... Kxe7 {[%clk 0:01:20.7]} 26. Qxh4+ {[%clk 0:00:09.7]}
26... Kd7 {[%clk 0:01:21.1]} 27. Nc3 {[%clk 0:00:08.3]} 27... Qxb2 {[%clk
0:01:16.6]} 28. Ne4 {[%clk 0:00:07.4]} 28... Rc1 {[%clk 0:01:13]} 29. Ng3 {[%clk
0:00:02.7]} 29... Rxg3 {[%clk 0:01:11.4]} 30. hxg3 {[%clk 0:00:02.1]} 30...
Rxf1+ {[%clk 0:01:11.3]} 31. Kh2 {[%clk 0:00:03]} 31... Bxf3 {[%clk 0:01:10.6]}
0-1

[Event "*** Titled Tuesday Blitz"]
[Site "Chess.com"]
[Date "2021.04.27"]
[Round "3"]
[White "Gloomy_Wanderer"]
[Black "ShahMatKanal"]
[Result "1-0"]
[WhiteElo "2715"]
[BlackElo "2420"]
[TimeControl "180+1"]
[EndTime "10:27:10 PDT"]
[Termination "Gloomy_Wanderer won by checkmate"]

1. d4 {[%clk 0:03:00.9]} 1... d5 {[%clk 0:02:59]} 2. c4 {[%clk 0:03:01]} 2... e6
{[%clk 0:02:57.8]} 3. Nf3 {[%clk 0:03:01.1]} 3... Nf6 {[%clk 0:02:57.9]} 4. g3
{[%clk 0:03:01.5]} 4... Be7 {[%clk 0:02:57.6]} 5. Bg2 {[%clk 0:03:01.5]} 5...
O-O {[%clk 0:02:58.2]} 6. O-O {[%clk 0:03:02.4]} 6... c6 {[%clk 0:02:58.5]} 7.
Qc2 {[%clk 0:03:01]} 7... Nbd7 {[%clk 0:02:58.6]} 8. Nbd2 {[%clk 0:03:01.4]}
8... b6 {[%clk 0:02:56.9]} 9. e4 {[%clk 0:03:01.5]} 9... Bb7 {[%clk 0:02:56.4]}
10. e5 {[%clk 0:03:01.6]} 10... Ne8 {[%clk 0:02:56.3]} 11. cxd5 {[%clk
0:03:01.5]} 11... cxd5 {[%clk 0:02:56.2]} 12. Re1 {[%clk 0:03:01.3]} 12... a5
{[%clk 0:02:55.7]} 13. Bf1 {[%clk 0:02:54.4]} 13... Ba6 {[%clk 0:02:49.2]} 14.
h4 {[%clk 0:02:54]} 14... Qc7 {[%clk 0:02:34.2]} 15. Qd1 {[%clk 0:02:49.9]}
15... Bxf1 {[%clk 0:02:30]} 16. Nxf1 {[%clk 0:02:50.8]} 16... Rc8 {[%clk
0:02:28.3]} 17. Ne3 {[%clk 0:02:50.9]} 17... b5 {[%clk 0:02:20.9]} 18. h5 {[%clk
0:02:51]} 18... a4 {[%clk 0:02:04.5]} 19. h6 {[%clk 0:02:48.6]} 19... g6 {[%clk
0:02:03.5]} 20. Re2 {[%clk 0:02:44.5]} 20... Nb6 {[%clk 0:01:57.8]} 21. Ng4
{[%clk 0:02:38.9]} 21... Nc4 {[%clk 0:01:49.1]} 22. Rc2 {[%clk 0:02:24]} 22...
Qb7 {[%clk 0:01:41.2]} 23. b3 {[%clk 0:02:20.9]} 23... Na3 {[%clk 0:01:33.5]}
24. Rxc8 {[%clk 0:02:12.9]} 24... Qxc8 {[%clk 0:01:34.4]} 25. Bxa3 {[%clk
0:01:54.8]} 25... Bxa3 {[%clk 0:01:33.8]} 26. bxa4 {[%clk 0:01:55.3]} 26... b4
{[%clk 0:01:28.1]} 27. Qe2 {[%clk 0:01:33.4]} 27... Qc3 {[%clk 0:01:24.2]} 28.
Rd1 {[%clk 0:01:30.5]} 28... Qc6 {[%clk 0:01:09.3]} 29. Ng5 {[%clk 0:01:14.8]}
29... Qxa4 {[%clk 0:01:05]} 30. Qf3 {[%clk 0:01:14.6]} 30... Qa8 {[%clk
0:00:06.4]} 31. Nf6+ {[%clk 0:01:10]} 31... Kh8 {[%clk 0:00:06.2]} 32. Ngxh7
{[%clk 0:01:08.5]} 32... Nxf6 {[%clk 0:00:04.7]} 33. Qxf6+ {[%clk 0:01:08.3]}
33... Kxh7 {[%clk 0:00:05.1]} 34. Qg7# {[%clk 0:01:08.5]} 1-0

[Event "*** Titled Tuesday Blitz"]
[Site "Chess.com"]
[Date "2021.04.27"]
[Round "3"]
[White "ChessAdvanceUSA"]
[Black "YoreDea"]
[Result "0-1"]
[WhiteElo "2316"]
[BlackElo "2563"]
[TimeControl "180+1"]
[EndTime "10:27:10 PDT"]
[Termination "YoreDea won on time"]

1. Nc3 {[%clk 0:03:00.9]} 1... d5 {[%clk 0:02:56.3]} 2. d4 {[%clk 0:03:00.2]}
2... Nf6 {[%clk 0:02:51.4]} 3. Bg5 {[%clk 0:02:55.4]} 3... h6 {[%clk 0:02:42.8]}
4. Bxf6 {[%clk 0:02:53.6]} 4... exf6 {[%clk 0:02:41.7]} 5. e3 {[%clk 0:02:47.4]}
5... Be7 {[%clk 0:02:26.5]} 6. Bd3 {[%clk 0:02:45.1]} 6... O-O {[%clk
0:02:19.2]} 7. Nge2 {[%clk 0:02:44.8]} 7... c6 {[%clk 0:02:06.7]} 8. O-O {[%clk
0:02:36.1]} 8... a5 {[%clk 0:02:01]} 9. Ng3 {[%clk 0:02:24.5]} 9... Na6 {[%clk
0:01:57.1]} 10. a3 {[%clk 0:02:22]} 10... Nc7 {[%clk 0:01:56.5]} 11. Nce2 {[%clk
0:02:03.1]} 11... g6 {[%clk 0:01:51.9]} 12. c4 {[%clk 0:01:55.2]} 12... Re8
{[%clk 0:01:43.2]} 13. h4 {[%clk 0:01:32.3]} 13... h5 {[%clk 0:01:39.8]} 14. Nf4
{[%clk 0:01:05]} 14... f5 {[%clk 0:01:39.2]} 15. Ngxh5 {[%clk 0:00:40.8]} 15...
gxh5 {[%clk 0:01:38.2]} 16. Qxh5 {[%clk 0:00:37.3]} 16... Bxh4 {[%clk 0:01:38]}
17. g3 {[%clk 0:00:19.4]} 17... Bf6 {[%clk 0:01:22.2]} 18. Kg2 {[%clk
0:00:16.6]} 18... Bg7 {[%clk 0:01:20.4]} 19. Rh1 {[%clk 0:00:15.9]} 19... Qf6
{[%clk 0:01:20.4]} 20. Qh3 {[%clk 0:00:11.5]} 20... Re4 {[%clk 0:01:16.2]} 21.
Nh5 {[%clk 0:00:05.7]} 21... Qh6 {[%clk 0:01:13.5]} 22. Nxg7 {[%clk 0:00:05.4]}
22... Qxh3+ {[%clk 0:01:13.3]} 23. Rxh3 {[%clk 0:00:04.6]} 23... Kxg7 {[%clk
0:01:14.2]} 24. Rah1 {[%clk 0:00:04.7]} 24... Be6 {[%clk 0:01:13]} 25. Rh7+
{[%clk 0:00:04.5]} 25... Kf6 {[%clk 0:01:12.7]} 26. R1h6+ {[%clk 0:00:03.6]}
26... Ke7 {[%clk 0:01:12.9]} 27. Bxe4 {[%clk 0:00:03.4]} 27... dxe4 {[%clk
0:01:11]} 28. c5 {[%clk 0:00:04.3]} 28... Rb8 {[%clk 0:01:04.2]} 29. Rh8 {[%clk
0:00:04.7]} 29... Ne8 {[%clk 0:01:04.6]} 30. Rg8 {[%clk 0:00:04.1]} 30... b6
{[%clk 0:01:04.5]} 31. Rhh8 {[%clk 0:00:03.3]} 31... bxc5 {[%clk 0:01:03.4]} 32.
dxc5 {[%clk 0:00:03.6]} 32... Bd7 {[%clk 0:01:03.9]} 0-1

[Event "*** Titled Tuesday Blitz"]
[Site "Chess.com"]
[Date "2021.04.27"]
[Round "3"]
[White "H3nriqueTV"]
[Black "kinga2008"]
[Result "1-0"]
[WhiteElo "2320"]
[BlackElo "2118"]
[TimeControl "180+1"]
[EndTime "10:27:15 PDT"]
[Termination "H3nriqueTV won by resignation"]

1. e4 {[%clk 0:02:56]} 1... c5 {[%clk 0:03:00.9]} 2. Nf3 {[%clk 0:02:55.8]} 2...
Nc6 {[%clk 0:02:53.5]} 3. Nc3 {[%clk 0:02:55.3]} 3... e5 {[%clk 0:02:52.5]} 4.
a3 {[%clk 0:02:48.5]} 4... d6 {[%clk 0:02:48.9]} 5. Bc4 {[%clk 0:02:48.5]} 5...
Nf6 {[%clk 0:02:39.6]} 6. d3 {[%clk 0:02:48.5]} 6... Be7 {[%clk 0:02:26.2]} 7.
Ne2 {[%clk 0:02:47.3]} 7... O-O {[%clk 0:02:24.4]} 8. Ng3 {[%clk 0:02:46.1]}
8... Be6 {[%clk 0:02:16.6]} 9. O-O {[%clk 0:02:36.3]} 9... Bxc4 {[%clk
0:02:06.8]} 10. dxc4 {[%clk 0:02:35]} 10... Nd4 {[%clk 0:02:05.6]} 11. c3 {[%clk
0:02:33.5]} 11... Nxf3+ {[%clk 0:02:01.8]} 12. Qxf3 {[%clk 0:02:32.6]} 12... Qd7
{[%clk 0:02:02.7]} 13. h3 {[%clk 0:02:31.5]} 13... g6 {[%clk 0:02:00.5]} 14. Bh6
{[%clk 0:02:28.5]} 14... Rfe8 {[%clk 0:01:57]} 15. Rad1 {[%clk 0:02:29.1]} 15...
Rad8 {[%clk 0:01:50.5]} 16. Rd3 {[%clk 0:01:59.4]} 16... Qe6 {[%clk 0:01:43.1]}
17. Rfd1 {[%clk 0:01:57.9]} 17... Qxc4 {[%clk 0:01:41.1]} 18. Nf5 {[%clk
0:01:43.8]} 18... Qe6 {[%clk 0:01:28.2]} 19. Ng7 {[%clk 0:01:19.7]} 19... Qd7
{[%clk 0:01:20.3]} 20. Nxe8 {[%clk 0:01:14.3]} 20... Rxe8 {[%clk 0:01:19.4]} 21.
Bg5 {[%clk 0:01:14]} 21... Kg7 {[%clk 0:01:18.7]} 22. Bxf6+ {[%clk 0:01:13.7]}
22... Bxf6 {[%clk 0:01:18.3]} 23. Rxd6 {[%clk 0:01:14.4]} 23... Qe7 {[%clk
0:01:17.3]} 24. Rd7 {[%clk 0:01:11.8]} 24... Qf8 {[%clk 0:01:06.7]} 25. Rxb7
{[%clk 0:01:06.8]} 25... Re7 {[%clk 0:01:05.3]} 26. Rdd7 {[%clk 0:01:03.1]}
26... Rxd7 {[%clk 0:01:04.7]} 27. Rxd7 {[%clk 0:01:03.1]} 27... Qb8 {[%clk
0:01:03.9]} 28. b4 {[%clk 0:00:57.8]} 28... cxb4 {[%clk 0:01:03.3]} 29. axb4
{[%clk 0:00:50.9]} 29... Qc8 {[%clk 0:01:04.2]} 30. Qd3 {[%clk 0:00:50.2]} 30...
Qc6 {[%clk 0:00:50.7]} 31. Rxa7 {[%clk 0:00:45.7]} 31... Bg5 {[%clk 0:00:49.8]}
32. Qd5 {[%clk 0:00:43.2]} 32... Qf6 {[%clk 0:00:47.2]} 33. b5 {[%clk
0:00:41.1]} 33... Qf4 {[%clk 0:00:46.3]} 34. Ra1 {[%clk 0:00:33.5]} 1-0

[Event "*** Titled Tuesday Blitz"]
[Site "Chess.com"]
[Date "2021.04.27"]
[Round "3"]
[White "exoticprincess"]
[Black "NicoChasin"]
[Result "1-0"]
[WhiteElo "2928"]
[BlackElo "2658"]
[TimeControl "180+1"]
[EndTime "10:27:16 PDT"]
[Termination "exoticprincess won by resignation"]

1. d4 {[%clk 0:03:00.9]} 1... Nf6 {[%clk 0:02:55.7]} 2. Nc3 {[%clk 0:02:58.6]}
2... d6 {[%clk 0:02:47.7]} 3. e4 {[%clk 0:02:56.1]} 3... Nbd7 {[%clk 0:02:46.5]}
4. f4 {[%clk 0:02:53.5]} 4... e5 {[%clk 0:02:43.7]} 5. Nf3 {[%clk 0:02:53.9]}
5... exd4 {[%clk 0:02:43.2]} 6. Qxd4 {[%clk 0:02:54.5]} 6... g6 {[%clk
0:02:38.1]} 7. e5 {[%clk 0:02:46.9]} 7... dxe5 {[%clk 0:02:34.8]} 8. fxe5 {[%clk
0:02:47.8]} 8... Nh5 {[%clk 0:02:31.1]} 9. e6 {[%clk 0:02:36.5]} 9... Ndf6
{[%clk 0:02:28.3]} 10. exf7+ {[%clk 0:02:34.3]} 10... Ke7 {[%clk 0:02:28.8]} 11.
Qxd8+ {[%clk 0:02:28.8]} 11... Kxd8 {[%clk 0:02:27.9]} 12. Bg5 {[%clk 0:02:29]}
12... Ke7 {[%clk 0:02:26.9]} 13. Bc4 {[%clk 0:02:25.9]} 13... Be6 {[%clk
0:02:25.9]} 14. Bxe6 {[%clk 0:02:23.2]} 14... Kxe6 {[%clk 0:02:25.3]} 15. O-O
{[%clk 0:02:23.1]} 15... h6 {[%clk 0:02:20.5]} 16. Nd4+ {[%clk 0:01:42.9]} 16...
Kxf7 {[%clk 0:02:10]} 17. Bxf6 {[%clk 0:01:43.8]} 17... Nxf6 {[%clk 0:02:10]}
18. Nd5 {[%clk 0:01:26.5]} 18... Bg7 {[%clk 0:02:08.3]} 19. Nxc7 {[%clk
0:01:11.1]} 19... Rad8 {[%clk 0:01:50.5]} 20. Nde6 {[%clk 0:00:58]} 20... Rd7
{[%clk 0:01:48.6]} 21. Rad1 {[%clk 0:00:57.9]} 21... Re7 {[%clk 0:01:45.8]} 22.
Rd6 {[%clk 0:00:55.3]} 22... Rc8 {[%clk 0:01:35.7]} 23. Nxg7 {[%clk 0:00:55.1]}
23... Rcxc7 {[%clk 0:01:35.6]} 24. Rfxf6+ {[%clk 0:00:54.8]} 24... Kxg7 {[%clk
0:01:35.7]} 25. Rxg6+ {[%clk 0:00:55.2]} 25... Kf8 {[%clk 0:01:35.5]} 26. Rdf6+
{[%clk 0:00:51.7]} 26... Ke8 {[%clk 0:01:35.3]} 27. c3 {[%clk 0:00:42.8]} 27...
Re1+ {[%clk 0:01:35.2]} 28. Rf1 {[%clk 0:00:41.6]} 28... Rce7 {[%clk 0:01:35.1]}
29. Rxh6 {[%clk 0:00:37.3]} 29... R1e2 {[%clk 0:01:34.6]} 30. Rf2 {[%clk
0:00:34.6]} 30... Re1+ {[%clk 0:01:34.5]} 31. Rf1 {[%clk 0:00:34.8]} 31... R1e2
{[%clk 0:01:35.4]} 32. b4 {[%clk 0:00:33.2]} 32... Rxa2 {[%clk 0:01:34.3]} 33.
h4 {[%clk 0:00:33.1]} 33... Ree2 {[%clk 0:01:31.6]} 34. Rg6 {[%clk 0:00:32.7]}
34... Rac2 {[%clk 0:01:31.3]} 35. Rf3 {[%clk 0:00:32.3]} 35... Re4 {[%clk
0:01:23.6]} 36. h5 {[%clk 0:00:30.1]} 36... Rh4 {[%clk 0:01:23.1]} 37. h6 {[%clk
0:00:25.4]} 37... b6 {[%clk 0:01:20.3]} 38. Rg8+ {[%clk 0:00:21.5]} 38... Ke7
{[%clk 0:01:20]} 39. Rg7+ {[%clk 0:00:22.4]} 39... Kd6 {[%clk 0:01:18.3]} 40. h7
{[%clk 0:00:23.3]} 40... a5 {[%clk 0:01:16.7]} 41. Rh3 {[%clk 0:00:23.2]} 41...
Rc1+ {[%clk 0:01:12]} 42. Kh2 {[%clk 0:00:22.9]} 42... Rxh7 {[%clk 0:01:09.2]}
43. Rhxh7 {[%clk 0:00:21.5]} 43... a4 {[%clk 0:01:09.1]} 44. Rh6+ {[%clk
0:00:20.5]} 1-0

[Event "*** Titled Tuesday Blitz"]
[Site "Chess.com"]
[Date "2021.04.27"]
[Round "3"]
[White "FeketeBarika"]
[Black "Ind1anStar"]
[Result "0-1"]
[WhiteElo "2247"]
[BlackElo "2522"]
[TimeControl "180+1"]
[EndTime "10:27:17 PDT"]
[Termination "Ind1anStar won by resignation"]

1. Nf3 {[%clk 0:03:00.9]} 1... d5 {[%clk 0:03:00.1]} 2. g3 {[%clk 0:03:01.8]}
2... Nf6 {[%clk 0:03:00.2]} 3. Bg2 {[%clk 0:03:02.7]} 3... e6 {[%clk 0:03:00.4]}
4. O-O {[%clk 0:03:02.8]} 4... Be7 {[%clk 0:03:00.8]} 5. c4 {[%clk 0:03:03.3]}
5... d4 {[%clk 0:03:00.3]} 6. e3 {[%clk 0:03:02.2]} 6... c5 {[%clk 0:03:00.6]}
7. exd4 {[%clk 0:03:02.3]} 7... cxd4 {[%clk 0:03:01.5]} 8. d3 {[%clk 0:03:03.1]}
8... O-O {[%clk 0:03:01.6]} 9. Bg5 {[%clk 0:03:03.7]} 9... Nc6 {[%clk
0:03:01.4]} 10. Re1 {[%clk 0:03:04.1]} 10... h6 {[%clk 0:03:01.4]} 11. Bxf6
{[%clk 0:03:03.8]} 11... Bxf6 {[%clk 0:03:02.3]} 12. a3 {[%clk 0:03:04.3]} 12...
a5 {[%clk 0:03:02]} 13. Nbd2 {[%clk 0:03:04.8]} 13... e5 {[%clk 0:02:59.9]} 14.
Ne4 {[%clk 0:03:04.7]} 14... Bf5 {[%clk 0:03:00.4]} 15. Nxf6+ {[%clk 0:03:03]}
15... Qxf6 {[%clk 0:03:01.3]} 16. Qc2 {[%clk 0:02:56.4]} 16... Rfe8 {[%clk
0:02:56.4]} 17. Nd2 {[%clk 0:02:56.4]} 17... Bh7 {[%clk 0:02:43.2]} 18. Ne4
{[%clk 0:02:53]} 18... Qe7 {[%clk 0:02:43.3]} 19. Rab1 {[%clk 0:02:50.6]} 19...
f5 {[%clk 0:02:39.9]} 20. Nd2 {[%clk 0:02:49.4]} 20... a4 {[%clk 0:02:38.2]} 21.
c5 {[%clk 0:02:47.2]} 21... Kh8 {[%clk 0:02:36.3]} 22. Rbc1 {[%clk 0:02:41.3]}
22... Qf8 {[%clk 0:02:17.5]} 23. Qc4 {[%clk 0:02:37.4]} 23... Bg8 {[%clk
0:02:02.2]} 24. Qb5 {[%clk 0:02:34.7]} 24... Na5 {[%clk 0:01:58]} 25. Qxa4
{[%clk 0:02:25.6]} 25... Nb3 {[%clk 0:01:53.4]} 26. Qb4 {[%clk 0:02:23.3]} 26...
Nxc1 {[%clk 0:01:50.1]} 27. Rxc1 {[%clk 0:02:24.2]} 27... Rac8 {[%clk
0:01:45.5]} 28. Bxb7 {[%clk 0:02:22.4]} 28... Rc7 {[%clk 0:01:45.5]} 29. Qb6
{[%clk 0:02:21.4]} 29... Qe7 {[%clk 0:01:39.3]} 30. c6 {[%clk 0:02:18.7]} 30...
Rb8 {[%clk 0:01:34.8]} 31. b4 {[%clk 0:02:17.4]} 31... e4 {[%clk 0:01:22.5]} 32.
dxe4 {[%clk 0:02:14.6]} 32... fxe4 {[%clk 0:01:06.7]} 33. Qxd4 {[%clk
0:02:13.1]} 33... Rbxb7 {[%clk 0:01:05]} 34. Nxe4 {[%clk 0:02:05.4]} 34... Rb8
{[%clk 0:01:02.3]} 35. Rc5 {[%clk 0:01:44.5]} 35... Rd8 {[%clk 0:01:00.3]} 36.
Qe3 {[%clk 0:01:40.3]} 36... Rd1+ {[%clk 0:00:55.1]} 37. Kg2 {[%clk 0:01:40]}
37... Bd5 {[%clk 0:00:55.6]} 38. f3 {[%clk 0:01:35.9]} 38... Rxc6 {[%clk
0:00:48.4]} 39. Rxc6 {[%clk 0:01:32]} 39... Bxc6 {[%clk 0:00:49.3]} 40. Qb3
{[%clk 0:01:19.2]} 40... Rd8 {[%clk 0:00:44.4]} 41. Nf2 {[%clk 0:01:18.8]} 41...
Qf6 {[%clk 0:00:42]} 42. b5 {[%clk 0:01:16.8]} 42... Bd5 {[%clk 0:00:40]} 43.
Qe3 {[%clk 0:01:12.9]} 43... Rf8 {[%clk 0:00:39.4]} 44. Ne4 {[%clk 0:01:10.7]}
44... Bxe4 {[%clk 0:00:39.1]} 45. Qxe4 {[%clk 0:01:11.6]} 45... Qb2+ {[%clk
0:00:39.2]} 46. Kh3 {[%clk 0:01:11.6]} 46... Qxb5 {[%clk 0:00:39.1]} 47. Qe7
{[%clk 0:01:11.9]} 47... Qf5+ {[%clk 0:00:36.2]} 0-1